bitfinex/quotes_SOLUSD_20241209
["timestamp","ask_amount","ask_price","bid_price","bid_amount"]
[1733778983619,0.12549,218.88,218.61,0.34289562]
[1733778983792,0.12549,218.86,218.61,0.34289562]
[1733778984114,0.85702074,218.85,218.61,0.34289562]
[1733778984320,0.85702074,218.85,218.58,35.80560904]
[1733778984321,0.85692018,218.91,218.55,13.0064]
[1733778984494,0.85692018,218.91,218.62,35.80560904]
[1733778984692,11.4174,218.97,218.62,35.80560904]
[1733778984894,42.1921664,218.96,218.58,18.298429]
[1733778985115,228.41031569,218.92,218.48,13.19574499]
[1733778985297,228.41031569,218.83,218.49,18.305362]
[1733778985493,11.4254,218.81,218.48,13.19574499]
[1733778985694,0.85756214,218.8,218.48,13.19574499]
[1733778986114,0.85756214,218.8,218.42,35.80560904]
[1733778986319,0.85756214,218.8,218.4,48.51280904]
[1733778986517,228.41031569,218.74,218.36,35.80560904]
[1733778986706,0.85777609,218.73,218.45,35.80560904]
[1733778986901,0.85742173,218.8,218.36,13.69]
[1733778987174,281.55826199,219.11,218.74,0.12549]
[1733778987303,42.04738135,219.1,218.74,0.12549]
[1733778987493,11.4108,219.09,218.7,312.0]
[1733778987691,0.85632068,219.08,218.7,312.0]
[1733778987915,0.85632068,219.08,218.64,0.25098]
[1733778988422,0.85632068,219.08,218.74,35.80560904]
[1733778988630,0.85622442,219.07,218.7,35.80560904]
[1733778988994,0.12549,219.01,218.59,35.80560904]
[1733778989224,0.85688129,219.0,218.61,35.80560904]
[1733778989392,228.41031569,218.93,218.55,47.90630904]
[1733778989719,0.85702819,218.92,218.58,35.80560904]
[1733778989927,23.776884,218.91,218.58,35.80560904]
[1733778990221,23.776884,218.89,218.55,12.1007]
[1733778990519,23.902374,218.87,218.55,12.1007]
[1733778990693,228.41031569,218.93,218.46,54.10367004]
[1733778990694,23.902374,218.85,218.48,35.80560904]
[1733778990914,23.776884,218.83,218.5,35.80560904]
[1733778991116,23.776884,218.81,218.46,330.298061]
[1733778991349,23.776884,218.79,218.48,35.80560904]
[1733778991521,0.85731582,218.78,218.46,18.298061]
[1733778991718,0.85731582,218.78,218.51,35.80560904]
[1733778991944,228.41031569,218.84,218.51,35.80560904]
[1733778992242,0.85714378,218.83,218.51,35.80560904]
[1733778992446,0.85714378,218.83,218.53,35.80560904]
[1733778992617,0.85706046,218.87,218.55,35.80560904]
[1733778992823,0.85696117,218.86,218.59,35.80560904]
[1733778993024,0.85683068,218.92,218.57,35.80560904]
[1733778993447,0.85683068,218.92,218.53,35.80560904]
[1733778993745,0.12549,218.9,218.53,36.04734996]
[1733778993921,0.85703912,218.9,218.56,35.92185996]
[1733778994119,0.85703912,218.9,218.58,35.92185996]
[1733778994438,0.85703912,218.9,218.53,35.92185996]
[1733778994668,0.85703912,218.9,218.55,35.92185996]
[1733778994826,0.85703912,218.9,218.48,35.92185996]
[1733778995026,0.12549,218.89,218.46,18.298061]
[1733778995243,0.12549,218.82,218.46,18.298061]
[1733778995438,23.776884,218.81,218.46,54.21992096]
[1733778995621,0.12549,218.78,218.46,35.92185996]
[1733778995822,23.776884,218.77,218.46,35.92185996]
[1733778996026,0.12549,218.75,218.46,35.92185996]
[1733778996239,23.902374,218.73,218.42,35.92185996]
[1733778996426,0.85755994,218.72,218.47,35.92185996]
[1733778996733,6.71069945,218.72,218.27,13.0169]
[1733778997043,6.71069945,218.68,218.37,35.92185996]
[1733778997350,6.71069945,218.66,218.35,35.92185996]
[1733778997529,0.85795064,218.65,218.39,35.92185996]
[1733778997853,23.776884,218.72,218.36,35.92185996]
[1733778998042,23.776884,218.7,218.38,35.92185996]
[1733778998244,23.776884,218.7,218.29,18.315103]
[1733778998245,0.85782736,218.69,218.44,35.92185996]
[1733778998550,0.85767493,218.74,218.43,35.92185996]
[1733778998716,7.56326893,218.77,218.54,35.92185996]
[1733778998920,7.56326893,218.77,218.35,35.92185996]
[1733778998921,0.8573829,218.77,218.5,35.92185996]
[1733778999225,20.3381,218.8,218.57,23.902374]
[1733778999459,20.3381,218.8,218.59,0.12549]
[1733778999746,20.3381,218.8,218.59,59.69874396]
[1733778999955,20.3381,218.8,218.62,23.776884]
[1733779000247,0.85707114,218.88,218.62,23.776884]
[1733779000426,334.82961471,218.94,218.66,23.776884]
[1733779000627,0.85656791,218.93,218.69,35.92185996]
[1733779000827,22.30285661,219.07,218.79,35.92185996]
[1733779001157,22.30285661,219.07,218.85,23.776884]
[1733779001458,0.8560448,219.06,218.86,0.68483584]
[1733779001932,0.85620708,219.1,218.73,0.68496566]
[1733779002132,12.26670708,219.1,218.71,35.92185996]
[1733779002333,12.26670708,219.1,218.72,0.68530194]
[1733779002522,0.12549,219.09,218.72,0.68530194]
[1733779002726,0.12549,219.07,218.72,0.68530194]
[1733779002942,0.85656791,219.06,218.73,35.92185996]
[1733779003251,0.85656791,219.06,218.75,35.92185996]
[1733779003452,0.85656791,219.06,218.76,0.68512172]
[1733779003622,0.85656791,219.06,218.81,23.776884]
[1733779003822,0.85635445,219.1,218.83,23.776884]
[1733779004023,0.85635445,219.1,218.85,59.61435782]
[1733779004024,1.63856455,219.1,218.85,59.61435782]
[1733779004226,1.63856455,219.1,218.86,0.68493966]
[1733779004658,1.63856455,219.1,218.79,0.6850334]
[1733779005244,1.63856455,219.1,218.58,0.68516639]
[1733779005552,23.902374,218.9,218.5,35.83747382]
[1733779005724,23.776884,218.88,218.51,0.68584752]
[1733779005935,23.776884,218.83,218.51,0.68584752]
[1733779006135,23.776884,218.81,218.45,35.83747382]
[1733779006369,0.85656791,218.8,218.48,35.83747382]
[1733779006551,0.12549,218.79,218.52,35.83747382]
[1733779006748,0.85656791,218.78,218.53,0.6858846]
[1733779006949,0.85656791,218.78,218.47,0.68598354]
[1733779007151,0.85656791,218.78,218.47,35.83747382]
[1733779007351,0.85656791,218.78,218.48,0.6858997]
[1733779007637,20.0,218.74,218.49,35.83747382]
[1733779007838,23.776884,218.72,218.5,0.68602775]
[1733779008164,23.776884,218.72,218.26,30.76135642]
[1733779008165,20.0,218.65,218.36,0.68610675]
[1733779008352,20.0,218.65,218.34,35.83747382]
[1733779008353,0.85656791,218.64,218.34,35.83747382]
[1733779008536,23.776884,218.63,218.35,0.68629166]
[1733779008741,0.85656791,218.62,218.36,35.83747382]
[1733779008960,0.85656791,218.62,218.37,0.68630881]
[1733779009265,0.85656791,218.62,218.38,35.83747382]
[1733779009445,0.85656791,218.62,218.24,35.83747382]
[1733779009446,20.0,218.65,218.42,35.83747382]
[1733779009647,20.6918,218.68,218.5,0.12549]
[1733779009951,20.6918,218.68,218.51,0.68596133]
[1733779009952,0.85656791,218.67,218.51,0.68596133]
[1733779010155,0.85656791,218.66,218.51,0.68596133]
[1733779010460,0.85656791,218.67,218.51,0.68596133]
[1733779010649,239.83441569,218.84,218.52,59.61435782]
[1733779010650,12.8817,218.82,218.52,59.61435782]
[1733779010854,0.85656791,218.81,218.58,23.776884]
[1733779011056,0.85656791,218.81,218.59,0.6857481]
[1733779011264,0.12549,218.8,218.59,0.6857481]
[1733779011465,0.12549,218.78,218.54,0.68587532]
[1733779011642,0.85656791,218.77,218.48,35.83747382]
[1733779011841,0.85656791,218.77,218.49,0.68598379]
[1733779012175,20.0,218.71,218.36,0.68605156]
[1733779012472,0.85656791,218.7,218.36,0.68605156]
[1733779013069,0.85656791,218.7,218.36,35.83747382]
[1733779013248,0.12549,218.69,218.37,0.68639988]
[1733779013460,0.12549,218.61,218.31,0.68670874]
[1733779013653,20.85656791,218.6,218.25,0.68679816]
[1733779013857,20.0,218.56,218.25,0.68679816]
[1733779014058,0.12549,218.54,218.25,0.68679816]
[1733779014269,0.85656791,218.53,218.27,35.83747382]
[1733779014441,20.3426,218.63,218.13,35.83747382]
[1733779014442,0.85656791,218.55,218.31,35.83747382]
[1733779014643,20.3426,218.63,218.42,35.83747382]
[1733779014867,0.85656791,218.62,218.36,35.83747382]
[1733779015173,20.3426,218.63,218.43,0.12549]
[1733779015345,0.85656791,218.62,218.44,0.68615194]
[1733779015541,0.85656791,218.61,218.44,0.68615194]
[1733779015764,0.85656791,218.61,218.24,35.83747382]
[1733779015765,0.85656791,218.61,218.39,0.68639053]
[1733779015962,0.85656791,218.61,218.43,35.83747382]
[1733779016154,0.85656791,218.74,218.5,35.83747382]
[1733779016362,0.85656791,218.74,218.54,35.83747382]
[1733779016570,0.85656791,218.74,218.45,35.83747382]
[1733779016755,0.85656791,218.74,218.47,35.83747382]
[1733779016967,0.85656791,218.74,218.49,35.83747382]
[1733779017159,0.85766193,218.75,218.54,20.0]
[1733779017666,0.85766193,218.75,218.35,20.0]
[1733779017973,0.85766193,218.75,218.54,20.0]
[1733779018171,0.85766193,218.75,218.58,20.0]
[1733779018347,0.85766193,218.75,218.36,11.4489]
[1733779018549,0.85766193,218.75,218.58,20.0]
[1733779018850,0.85766193,218.75,218.49,35.83747382]
[1733779019075,12.3495,218.76,218.39,20.0]
[1733779019256,12.9995,218.89,218.76,20.0]
[1733779019464,0.85657746,218.94,218.77,35.83747382]
[1733779019771,7.8594,218.95,218.83,35.83747382]
[1733779020191,0.7822101,219.07,218.92,20.0]
[1733779020350,0.7822101,219.07,218.96,20.0]
[1733779020551,0.7822101,219.07,218.79,35.83747382]
[1733779020750,0.7822101,219.07,218.75,0.12549]
[1733779020751,0.85589927,219.06,218.75,0.12549]
[1733779021049,0.7822101,219.07,218.92,35.83747382]
[1733779021249,0.7822101,219.07,218.95,20.0]
[1733779021451,0.7822101,219.07,218.9,35.83747382]
[1733779021667,0.7822101,219.07,218.79,35.83747382]
[1733779021668,0.7822101,219.07,218.95,20.0]
[1733779022258,0.7822101,219.07,218.9,35.83747382]
[1733779022463,0.7822101,219.07,218.93,55.83747382]
[1733779022779,0.7822101,219.07,218.95,35.83747382]
[1733779022949,0.7822101,219.07,218.91,35.83747382]
[1733779023151,0.7822101,219.07,219.03,20.0]
[1733779023560,0.7822101,219.07,219.04,20.0]
[1733779023863,0.7822101,219.07,219.06,0.12549]
[1733779024162,1.01e-05,219.07,219.06,0.12549]
[1733779024353,1.01e-05,219.07,219.06,35.08945382]
[1733779024561,12.8446,219.32,219.09,20.0]
[1733779024774,12.8446,219.32,219.12,35.83747382]
[1733779024961,1.65378282,219.38,219.15,20.0]
[1733779025169,0.7988316,219.38,219.17,20.0]
[1733779025357,0.85469135,219.37,218.95,23.902374]
[1733779025557,0.7988316,219.38,219.13,0.12549]
[1733779025785,0.85479538,219.37,219.09,35.83747382]
[1733779025993,0.85479538,219.37,219.01,35.83747382]
[1733779026160,10.85479538,219.37,219.01,35.83747382]
[1733779026359,0.85479538,219.37,219.06,35.83747382]
[1733779026563,20.0,219.35,218.97,10.0]
[1733779026871,0.12549,219.33,219.0,35.83747382]
[1733779027055,0.85531562,219.32,219.08,35.83747382]
[1733779027260,0.85531562,219.32,219.01,45.83747382]
[1733779027261,0.85531562,219.32,219.06,35.83747382]
[1733779027456,0.85531562,219.32,219.04,35.83747382]
[1733779027962,0.85525787,219.31,219.04,35.83747382]
[1733779028158,0.85526453,219.35,219.07,0.12549]
[1733779028361,0.85526453,219.35,219.04,35.83747382]
[1733779028567,0.85526453,219.35,219.11,35.83747382]
[1733779028773,0.85500691,219.37,219.1,35.83747382]
[1733779029076,0.85500691,219.37,219.03,10.0]
[1733779029077,0.85500691,219.37,219.14,35.83747382]
[1733779029284,0.7988316,219.38,219.01,35.83747382]
[1733779029285,0.7988316,219.38,219.18,35.83747382]
[1733779029494,0.7988316,219.38,219.29,35.83747382]
[1733779029696,0.7988316,219.38,219.36,20.0]
[1733779029869,0.7988316,219.38,219.27,55.83747382]
[1733779030067,0.7988316,219.38,219.36,20.0]
[1733779030483,0.7988316,219.38,219.37,0.12549]
[1733779030703,0.6734316,219.38,219.37,0.25098]
[1733779030999,0.6734316,219.38,219.37,89.86533782]
[1733779031176,0.6734316,219.38,219.37,44.027864]
[1733779031500,0.6734316,219.38,219.37,20.12549]
[1733779031689,0.6734316,219.38,219.37,44.027864]
[1733779031871,0.6734316,219.38,219.37,20.25098]
[1733779032078,0.6734316,219.38,219.37,20.0]
[1733779032269,0.5480316,219.38,219.37,35.96296382]
[1733779032676,15.24943545,219.66,219.42,0.12549]
[1733779032969,15.24943545,219.66,219.49,20.0]
[1733779033193,15.24943545,219.66,219.45,0.12549]
[1733779033194,15.24943545,219.66,219.51,20.0]
[1733779033471,15.24943545,219.66,219.54,20.0]
[1733779033804,15.24943545,219.66,219.48,35.83747382]
[1733779034095,0.85353254,219.65,219.46,35.83747382]
[1733779034298,15.24943545,219.66,219.44,35.83747382]
[1733779034504,15.24943545,219.66,219.54,20.0]
[1733779034675,15.24943545,219.66,219.61,35.83747382]
[1733779034875,15.24943545,219.66,219.64,20.12549]
[1733779035080,15.24943545,219.66,219.65,35.96296382]
[1733779035306,15.12403545,219.66,219.57,23.776884]
[1733779035488,15.12403545,219.66,219.64,20.0]
[1733779035803,15.12403545,219.66,219.57,35.83747382]
[1733779036305,15.12403545,219.66,219.39,10.0]
[1733779036474,15.12403545,219.66,219.42,35.83747382]
[1733779036675,0.85363521,219.65,219.36,35.83747382]
[1733779036869,0.12549,219.64,219.36,35.83747382]
[1733779037074,0.12549,219.62,219.31,35.83747382]
[1733779037295,0.85414043,219.61,219.33,35.83747382]
[1733779037498,10.85414043,219.61,219.3,35.83747382]
[1733779037693,20.0,219.63,219.45,35.83747382]
[1733779037871,15.12403545,219.66,219.47,35.83747382]
[1733779038074,15.12403545,219.66,219.36,10.0]
[1733779038075,15.12403545,219.66,219.45,35.83747382]
[1733779038276,0.85361476,219.65,219.43,35.83747382]
[1733779038507,15.12403545,219.66,219.52,35.83747382]
[1733779038805,15.12403545,219.66,219.5,35.83747382]
[1733779038973,13.48955372,219.7,219.35,11.3973]
[1733779038974,10.0,219.93,219.67,35.83747382]
[1733779039179,0.68904669,219.92,219.7,0.12549]
[1733779039382,12.2719,219.95,219.76,35.83747382]
[1733779039682,12.2719,219.95,219.77,0.68216819]
[1733779040279,0.7988316,219.99,219.8,35.83747382]
[1733779040487,0.7988316,219.99,219.76,36.51946243]
[1733779040882,0.7988316,219.99,219.76,0.68198861]
[1733779041088,10.7988316,219.99,219.76,0.68198861]
[1733779041381,0.7988316,219.99,219.76,0.68198861]
[1733779041682,0.7988316,219.99,219.77,0.68213808]
[1733779041871,0.7988316,219.99,219.87,35.83747382]
[1733779042076,0.7988316,219.99,219.76,0.68172766]
[1733779042607,10.0,219.86,219.49,35.83747382]
[1733779042777,10.0,219.82,219.5,0.68259982]
[1733779042982,20.0,219.85,219.5,0.68259982]
[1733779043206,228.41031569,219.87,219.56,35.83747382]
[1733779043411,10.0,219.86,219.57,0.68236615]
[1733779043611,20.0,219.83,219.57,0.68236615]
[1733779044112,10.0,219.85,219.57,0.68236615]
[1733779044316,20.0,219.82,219.57,0.68236615]
[1733779044481,20.0,219.82,219.06,13.44025549]
[1733779044482,20.0,219.82,219.58,0.6825379]
[1733779044677,30.0,219.81,219.58,0.6825379]
[1733779044900,30.0,219.81,219.47,35.83747382]
[1733779044901,20.0,219.79,219.49,35.83747382]
[1733779045113,10.0,219.77,219.5,0.68261223]
[1733779045278,20.0,219.74,219.57,18.217486]
[1733779045478,30.0,219.7,219.43,0.68282455]
[1733779045797,20.0,219.67,219.43,0.68282455]
[1733779046007,5.69210346,219.7,219.44,18.222218]
[1733779046180,5.69210346,219.7,219.45,0.68291049]
[1733779046382,5.69210346,219.7,219.48,35.83747382]
[1733779046578,5.69210346,219.7,219.5,0.12549]
[1733779046783,12.0182,219.72,219.51,0.68268667]
[1733779047384,10.0,219.83,219.52,0.12549]
[1733779047582,10.0,219.83,219.55,20.0]
[1733779047803,10.0,219.83,219.56,0.68256454]
[1733779048021,12.6432,219.85,219.6,20.0]
[1733779048181,12.6432,219.85,219.61,0.6824675]
[1733779048381,10.0,219.83,219.52,0.80817458]
[1733779048592,20.0,219.78,219.52,0.68268458]
[1733779048795,10.12549,219.77,219.46,0.68278186]
[1733779049011,21.3729,219.82,219.46,0.68278186]
[1733779049012,0.12549,219.71,219.46,0.68278186]
[1733779049319,10.0,219.72,219.46,0.68278186]
[1733779049521,248.41031569,219.69,219.47,0.68319177]
[1733779049811,20.0,219.62,219.45,0.68311519]
[1733779050011,20.0,219.62,219.34,35.83747382]
[1733779050217,20.0,219.62,219.41,18.230012]
[1733779050423,20.0,219.62,219.42,0.6831542]
[1733779050710,20.0,219.59,219.42,0.6831542]
[1733779050893,239.79041569,219.69,219.39,35.83747382]
[1733779051093,10.0,219.69,219.41,35.83747382]
[1733779051416,10.0,219.68,219.43,0.12549]
[1733779051711,23.776884,219.59,219.43,0.68307194]
[1733779053091,23.776884,219.41,219.21,18.93026398]
[1733779053290,20.0,219.48,219.21,0.68365398]
[1733779053487,23.776884,219.41,219.21,0.68365398]
[1733779053709,23.776884,219.46,219.16,54.08722582]
[1733779053912,23.776884,219.46,219.2,35.83747382]
[1733779054209,23.776884,219.42,219.21,0.68367258]
[1733779054390,7.7364,219.55,219.24,35.83747382]
[1733779054587,7.7364,219.55,219.27,0.12549]
[1733779054810,7.7364,219.55,219.28,0.68341327]
[1733779054986,10.0,219.54,219.28,0.68341327]
[1733779055188,70.0,219.65,219.37,1.86385799]
[1733779055189,8.13614201,219.65,219.37,1.86385799]
[1733779055522,8.13614201,219.68,219.41,1.86385799]
[1733779055813,26.36566501,219.77,219.51,0.12549]
[1733779055990,9.98,219.76,219.51,2.67223315]
[1733779056321,9.98,219.79,219.52,21.86385799]
[1733779056492,9.98,219.74,219.53,0.68276695]
[1733779056688,246.63030269,219.87,219.34,115.83747382]
[1733779056689,9.98,219.79,219.54,0.68295534]
[1733779057000,9.98,219.86,219.57,1.86385799]
[1733779057315,236.5464577,219.87,219.54,0.68295534]
[1733779057316,9.98,219.88,219.68,0.12549]
[1733779057487,70.0,220.0,219.68,0.12549]
[1733779057488,9.98,219.92,219.72,1.86385799]
[1733779057686,9.98,219.92,219.69,0.68216165]
[1733779057919,8.13614201,219.91,219.65,0.68243134]
[1733779058085,11.3646,219.98,219.42,37.70133181]
[1733779058086,8.13614201,219.75,219.42,37.70133181]
[1733779058283,9.98,219.64,219.31,1.86385799]
[1733779058492,18.11614201,219.64,219.37,1.86385799]
[1733779058696,9.98,219.56,219.27,1.86385799]
[1733779058891,9.98,219.56,219.29,1.86385799]
[1733779059086,11.3788,219.71,219.4,1.86385799]
[1733779059284,9.98,219.6,219.36,0.68361685]
[1733779059493,18.11614201,219.63,219.31,0.68344161]
[1733779059693,9.98,219.54,219.31,0.68344161]
[1733779059911,238.39031569,219.61,219.31,1.86385799]
[1733779060091,9.98,219.58,219.34,1.86385799]
[1733779060296,9.98,219.7,219.4,1.86385799]
[1733779060498,9.98,219.7,219.38,35.83747382]
[1733779060499,23.074,219.74,219.45,0.12549]
[1733779060693,13.094,219.74,219.51,1.86385799]
[1733779060903,13.094,219.74,219.52,0.68290738]
[1733779061211,9.98,219.78,219.53,1.86385799]
[1733779061408,238.39031569,219.79,219.5,1.86385799]
[1733779061607,238.39031569,219.79,219.54,0.68297038]
[1733779061796,9.98,219.78,219.54,0.68297038]
[1733779062249,9.98,219.77,219.54,0.68297038]
[1733779062401,9.98,219.75,219.54,2.54682837]
[1733779062610,9.98,219.79,219.56,1.86385799]
[1733779062795,9.98,219.87,219.64,1.86385799]
[1733779062995,17.8816,219.92,219.65,2.54639136]
[1733779063297,0.7988316,219.99,219.76,1.86385799]
[1733779063525,0.7988316,219.99,219.71,20.0]
[1733779063526,0.7988316,219.99,219.8,1.86385799]
[1733779063830,0.7988316,219.99,219.74,0.68197005]
[1733779063993,0.7988316,219.99,219.75,2.54591626]
[1733779064192,0.7988316,219.99,219.8,1.86385799]
[1733779064490,0.7988316,219.99,219.83,1.86385799]
[1733779064706,0.7988316,219.99,219.81,0.68195764]
[1733779064707,0.1063512,219.99,219.85,1.86385799]
[1733779064904,0.1063512,219.99,219.91,1.86385799]
[1733779065091,0.1063512,219.99,219.95,1.86385799]
[1733779065301,0.1063512,219.99,219.98,1.86385799]
[1733779065518,0.1063512,219.99,219.98,0.68140493]
[1733779066407,0.1063512,219.99,219.98,2.54526292]
[1733779066621,0.1063512,219.99,219.85,1.86385799]
[1733779066836,0.1063512,219.99,219.86,0.68180011]
[1733779067405,0.1063512,219.99,219.79,1.86385799]
[1733779067640,0.1063512,219.99,219.87,1.86385799]
[1733779067923,0.1063512,219.99,219.82,1.86385799]
[1733779068136,0.1063512,219.99,219.84,1.86385799]
[1733779068307,0.1063512,219.99,219.85,0.68192082]
[1733779068506,0.1063512,219.99,219.86,1.86385799]
[1733779068709,0.1063512,219.99,219.87,0.68189331]
[1733779069431,20.1063512,219.99,219.87,0.68189331]
[1733779069802,0.1063512,219.99,219.87,0.68189331]
[1733779070415,20.0,219.98,219.82,1.86385799]
[1733779070611,23.776884,219.97,219.84,1.86385799]
[1733779070809,23.776884,219.93,219.75,0.68199041]
[1733779071013,23.776884,219.89,219.71,1.86385799]
[1733779071203,0.12549,219.88,219.72,0.68230012]
[1733779071521,9.98,219.96,219.71,1.86385799]
[1733779071713,23.776884,219.91,219.74,1.86385799]
[1733779071913,23.776884,219.95,219.74,2.54616469]
[1733779071914,23.776884,219.87,219.74,2.54616469]
[1733779072246,23.776884,219.87,219.74,1.86385799]
[1733779072529,23.776884,219.79,219.66,18.208424]
[1733779072833,0.12549,219.74,219.52,2.5464533]
[1733779073046,23.902374,219.71,219.52,18.90304131]
[1733779073338,23.776884,219.71,219.57,1.86385799]
[1733779073636,23.776884,219.64,219.5,1.86385799]
[1733779073807,23.776884,219.68,219.52,1.86385799]
[1733779073808,20.0,219.65,219.52,1.86385799]
[1733779074008,20.0,219.65,219.53,0.68299022]
[1733779074308,9.98,219.83,219.59,1.86385799]
[1733779074502,228.41031569,219.89,219.63,1.86385799]
[1733779074503,11.3713,219.85,219.63,1.86385799]
[1733779074704,21.3513,219.85,219.61,1.86385799]
[1733779074926,11.3713,219.85,219.61,1.86385799]
[1733779075128,228.41031569,219.89,219.66,1.86385799]
[1733779075434,11.3664,219.95,219.73,1.86385799]
[1733779075728,228.41031569,219.98,219.76,1.86385799]
[1733779075933,21.3439,220.0,219.79,1.86385799]
[1733779076114,0.7884272,220.02,219.79,1.86385799]
[1733779076438,0.7884272,220.02,219.67,35.83747382]
[1733779076439,9.98,220.01,219.78,1.86385799]
[1733779076638,9.98,219.98,219.75,1.86385799]
[1733779076823,9.98,219.98,219.77,1.86385799]
[1733779077016,0.7884272,220.02,219.78,0.68223518]
[1733779077339,0.7884272,220.02,219.84,1.86385799]
[1733779077642,0.7884272,220.02,219.85,0.68202349]
[1733779078140,0.7884272,220.02,219.86,1.86385799]
[1733779078336,0.7884272,220.02,219.9,1.86385799]
[1733779078540,0.7884272,220.02,219.81,20.0]
[1733779078541,0.7884272,220.02,219.95,1.86385799]
[1733779079135,0.7884272,220.02,220.01,1.86385799]
[1733779079819,228.41031569,220.25,220.02,1.86385799]
[1733779080008,228.41031569,220.25,220.03,1.86385799]
[1733779080205,9.98,220.21,219.99,1.86385799]
[1733779080538,11.3527,220.21,220.01,1.86385799]
[1733779080719,228.41031569,220.25,220.02,1.86385799]
[1733779080913,21.3312,220.24,220.02,1.86385799]
[1733779081112,21.3312,220.24,219.91,0.68147986]
[1733779081113,9.98,220.22,219.99,1.86385799]
[1733779081418,0.12549,220.21,219.98,1.86385799]
[1733779081612,0.12549,220.21,219.93,1.86385799]
[1733779081814,9.98,220.17,219.89,0.68163503]
[1733779082113,20.0,220.1,219.96,1.86385799]
[1733779082323,9.98,220.22,220.02,1.86385799]
[1733779082639,9.98,220.19,219.96,1.86385799]
[1733779082820,11.3522,220.22,220.03,1.86385799]
[1733779083021,11.3522,220.22,219.98,1.86385799]
[1733779083224,228.41031569,220.23,220.06,1.86385799]
[1733779083420,12.1641,220.26,220.08,1.86385799]
[1733779083610,12.1641,220.26,219.99,0.68148127]
[1733779083611,11.3507,220.25,219.99,0.68148127]
[1733779083811,9.98,220.23,220.03,1.86385799]
[1733779084028,21.3307,220.25,220.05,1.86385799]
[1733779084237,0.12549,220.18,220.02,1.86385799]
[1733779084413,9.98,220.21,219.99,1.86385799]
[1733779084615,9.98,220.21,219.86,45.83747382]
[1733779084616,9.98,220.21,219.96,1.86385799]
[1733779084831,29.98,220.18,219.94,1.86385799]
[1733779085137,9.98,220.14,219.92,1.86385799]
[1733779085343,18.11614201,220.19,219.93,0.68175134]
[1733779085512,9.98,220.16,219.9,1.86385799]
[1733779085714,18.11614201,220.21,219.94,1.86385799]
[1733779085910,10.0,220.14,219.97,1.86385799]
[1733779086132,18.11614201,220.18,219.9,1.86385799]
[1733779086415,11.3548,220.17,219.93,1.86385799]
[1733779086730,20.0,220.05,219.86,1.86385799]
[1733779086931,20.0,220.05,219.86,0.68191161]
[1733779087247,20.0,220.07,219.9,1.86385799]
[1733779087438,20.0,220.07,219.92,1.86385799]
[1733779087915,56.7742,220.17,219.96,1.86385799]
[1733779088121,11.3548,220.17,219.91,1.86385799]
[1733779088317,0.12549,220.13,219.92,1.86385799]
[1733779088511,10.10549,220.09,219.84,1.86385799]
[1733779088718,0.12549,220.09,219.86,1.86385799]
[1733779088922,0.12549,220.09,219.85,1.86385799]
[1733779089241,9.98,220.07,219.84,1.86385799]
[1733779089464,228.53580569,220.09,219.84,1.86385799]
[1733779089617,0.12549,220.07,219.84,1.86385799]
[1733779089817,0.12549,220.0,219.84,1.86385799]
[1733779090026,0.12549,220.0,219.8,1.86385799]
[1733779090227,20.0,219.95,219.74,0.68207871]
[1733779090523,20.0,219.95,219.72,2.54631281]
[1733779090726,20.0,219.93,219.75,1.86385799]
[1733779090926,20.0,219.93,219.72,0.68245482]
[1733779090927,20.0,219.93,219.79,1.86385799]
[1733779091143,20.0,219.97,219.72,2.54631281]
[1733779091355,0.12549,219.95,219.72,1.86385799]
[1733779091558,20.0,219.96,219.83,1.86385799]
[1733779091854,11.3595,220.08,219.83,1.86385799]
[1733779092145,11.3595,220.08,219.87,1.86385799]
[1733779092357,11.3595,220.08,219.84,1.86385799]
[1733779092535,11.3595,220.08,219.9,1.86385799]
[1733779092731,11.3595,220.08,219.88,1.86385799]
[1733779093219,0.12549,220.07,219.83,1.86385799]
[1733779093418,19.49564201,220.08,219.85,1.86385799]
[1733779093620,8.13614201,220.06,219.82,1.86385799]
[1733779093838,11.3595,220.08,219.88,1.86385799]
[1733779094036,228.41031569,220.2,219.98,1.86385799]
[1733779094246,22.1441,220.25,220.01,1.86385799]
[1733779094539,11.3529,220.21,220.01,1.86385799]
[1733779094850,11.3529,220.21,219.95,0.68144517]
[1733779094851,18.190284,220.24,220.08,1.86385799]
[1733779095057,9.98,220.34,220.12,1.86385799]
[1733779095346,9.98,220.36,220.14,1.86385799]
[1733779095527,9.98,220.36,220.19,1.86385799]
[1733779095852,9.98,220.37,220.21,1.86385799]